fUSD/lending_fUSD_20241108
["ID","MTS","AMOUNT","RATE_DAILY","PERIOD"]
[341618054,1731040258432,-835.0,0.00027671,2]
[341618055,1731040258441,-835.0,0.00027671,2]
[341618056,1731040258450,-835.0,0.00027671,2]
[341618057,1731040258459,-835.0,0.00027671,2]
[341618058,1731040258469,-835.0,0.00027671,2]
[341618059,1731040258583,-1038.93,0.00027671,2]
[341618060,1731040258593,-835.0,0.00027671,2]
[341618061,1731040258603,-1141.8,0.00027671,2]
[341618062,1731040258612,-835.0,0.00027671,2]
[341618063,1731040258621,-1009.43,0.00027671,2]
[341618064,1731040258630,-835.0,0.00027671,2]
[341618065,1731040258639,-835.0,0.00027671,2]
[341618066,1731040258649,-835.0,0.00027671,2]
[341618067,1731040258658,-835.0,0.00027671,2]
[341618068,1731040258668,-500.0,0.00027671,2]
[341618069,1731040258677,-835.0,0.00027671,2]
[341618070,1731040258687,-835.0,0.00027671,2]
[341618071,1731040258697,-835.0,0.00027671,2]
[341618072,1731040258705,-835.0,0.00027671,2]
[341618073,1731040258717,-835.0,0.00027671,2]
[341618074,1731040258726,-835.0,0.00027671,2]
[341618075,1731040258735,-550.99,0.00027671,2]
[341618076,1731040258744,-839.51468636,0.00027671,2]
[341618077,1731040258754,-1363.45,0.00027671,2]
[341618078,1731040258762,-500.0,0.00027671,2]
[341618079,1731040258771,-1604.37,0.00027671,2]
[341618080,1731040258780,-1269.12,0.00027671,2]
[341618081,1731040258790,-1577.45,0.00027671,2]
[341618082,1731040258798,-500.0,0.00027671,2]
[341618083,1731040258807,-500.0,0.00027671,2]
[341618084,1731040258816,-2314.52,0.00027671,2]
[341618085,1731040258825,-500.0,0.00027671,7]
[341618086,1731040258834,-1843.27,0.00027671,2]
[341618087,1731040258846,-500.0,0.00027671,2]
[341618088,1731040258855,-3324.52,0.00027671,2]
[341618089,1731040258863,-981.73,0.00027671,2]
[341618090,1731040258873,-500.0,0.00027671,2]
[341618091,1731040258882,-614.85,0.00027671,2]
[341618092,1731040258891,-500.0,0.00027671,2]
[341618093,1731040258900,-844.68,0.00027671,2]
[341618094,1731040258909,-500.0,0.00027671,2]
[341618095,1731040258920,-502.64,0.00027671,2]
[341618096,1731040258931,-500.0,0.00027671,2]
[341618097,1731040258941,-500.0,0.00027671,2]
[341618098,1731040258952,-500.0,0.00027671,2]
[341618099,1731040258961,-500.0,0.00027671,2]
[341618100,1731040258970,-500.0,0.00027671,2]
[341618101,1731040258979,-500.0,0.00027671,2]
[341618102,1731040258989,-500.0,0.00027671,2]
[341618103,1731040258999,-974.84121674,0.00027671,2]
[341618104,1731040259009,-500.0,0.00027671,2]
[341618105,1731040259019,-1254.8,0.00027671,2]
[341618106,1731040259028,-906.84,0.00027671,2]
[341618107,1731040259037,-500.0,0.00027671,2]
[341618108,1731040259047,-500.0,0.00027671,2]
[341618109,1731040259055,-612.63,0.00027671,2]
[341618110,1731040259064,-950.1,0.00027671,2]
[341618111,1731040259074,-500.0,0.00027671,2]
[341618112,1731040259085,-2807.62,0.00027671,2]
[341618113,1731040259096,-500.0,0.00027671,2]
[341618114,1731040259106,-530.76,0.00027671,2]
[341618115,1731040259115,-500.0,0.00027671,2]
[341618116,1731040259124,-500.0,0.00027671,2]
[341618117,1731040259133,-500.0,0.00027671,2]
[341618118,1731040259143,-525.01,0.00027671,2]
[341618119,1731040259152,-522.75993533,0.00027671,2]
[341618120,1731040259162,-500.0,0.00027671,2]
[341618121,1731040259171,-500.0,0.00027671,2]
[341618122,1731040259179,-581.69,0.00027671,2]
[341618123,1731040259188,-500.0,0.00027671,2]
[341618124,1731040259198,-645.46,0.00027671,2]
[341618125,1731040259207,-500.0,0.00027671,2]
[341618126,1731040259216,-500.0,0.00027671,2]
[341618127,1731040259226,-500.0,0.00027671,2]
[341618128,1731040259235,-500.0,0.00027671,2]
[341618129,1731040259244,-500.0,0.00027671,2]
[341618130,1731040259254,-500.0,0.00027671,2]
[341618131,1731040259263,-500.0,0.00027671,2]
[341618132,1731040259272,-500.0,0.00027671,2]
[341618133,1731040259282,-500.0,0.00027671,2]
[341618134,1731040259291,-500.0,0.00027671,2]
[341618135,1731040259301,-150.110806,0.00027678,4]
[341618136,1731040259311,-230.36,0.00027691,2]
[341618137,1731040259320,-183.03,0.00027693,2]
[341618138,1731040259330,-1999.0,0.00027698,2]
[341618139,1731040259339,-1999.0,0.00027698,2]
[341618140,1731040259349,-670.65336257,0.00027698,2]
[341618141,1731040259358,-2454.5,0.000277,2]
[341618142,1731040259367,-455.145,0.000277,2]
[341618143,1731040259376,-137324.0,0.00027716,5]
[341618144,1731040259385,-150.110806,0.00027748,4]
[341618145,1731040259394,-164.908403,0.00027779,2]
[341618146,1731040259403,-217.0,0.0002783,2]
[341618147,1731040259411,-204.0,0.0002783,2]
[341618148,1731040259421,-209.0,0.0002783,30]
[341618149,1731040259430,-189.24689217,0.00027839,2]
[341618150,1731040259439,-181.8412666,0.00027839,2]
[341618151,1731040259448,-2010.02090304,0.00027839,2]
[341618152,1731040259458,-515.9851269,0.00027839,2]
[341618153,1731040259467,-524.13776278,0.00027839,2]
[341618154,1731040259475,-152.88644143,0.00027839,2]
[341618155,1731040259485,-150.0,0.00027843,30]
[341618156,1731040259494,-150.110806,0.00027848,5]
[341618157,1731040259503,-30626.63604289,0.0002788,2]
[341618158,1731040259513,-28709.92279573,0.000279,7]
[341618159,1731040259522,-797.0,0.000279,11]
[341618160,1731040259531,-150.0,0.000279,2]
[341618161,1731040259541,-151.0,0.000279,7]
[341618162,1731040259551,-455.145,0.000279,2]
[341618163,1731040259560,-505.68,0.00027938,7]
[341618164,1731040259571,-1042611.98424064,0.00027939,2]
[341618165,1731040259580,-25666.47976918,0.00027939,2]
[341618166,1731040259589,-151.0,0.00027939,7]
[341618167,1731040259605,-2266720.60590801,0.00027945,4]
[341618168,1731040259615,-31465.97114422,0.00027945,4]
[341618169,1731040259623,-2000.0,0.00027945,2]
[341618170,1731040259633,-500.0,0.00027945,2]
[341618171,1731040259642,-500.0,0.00027945,2]
[341618172,1731040259651,-500.0,0.00027945,2]
[341618173,1731040259660,-500.0,0.00027945,2]
[341618174,1731040259670,-593.76926355,0.00027945,2]
[341618175,1731040259679,-500.0,0.00027945,2]
[341618176,1731040259688,-500.0,0.00027945,2]
[341618177,1731040259698,-500.0,0.00027945,2]
[341618178,1731040259707,-510.65,0.00027945,2]
[341618179,1731040259717,-500.0,0.00027945,2]
[341618180,1731040259727,-500.3,0.00027945,2]
[341618181,1731040259736,-500.0,0.00027945,2]
[341618182,1731040259746,-500.0,0.00027945,2]
[341618183,1731040259755,-625.7945541,0.00027945,2]
[341618184,1731040259764,-228.8034345,0.00027945,2]
[341618185,1731040259773,-500.0,0.00027945,2]
[341618186,1731040259782,-500.0,0.00027945,2]
[341618187,1731040259791,-515.50513869,0.00027945,2]
[341618188,1731040259800,-500.0,0.00027945,2]
[341618189,1731040259809,-500.0,0.00027945,2]
[341618190,1731040259818,-500.0,0.00027945,2]
[341618191,1731040259827,-500.0,0.00027945,2]
[341618192,1731040259842,-500.0,0.00027945,2]
[341618193,1731040259853,-500.0,0.00027945,2]
[341618194,1731040259862,-500.0,0.00027945,2]
[341618195,1731040259871,-500.0,0.00027945,2]
[341618196,1731040259881,-500.0,0.00027945,2]
[341618197,1731040259890,-500.0,0.00027945,2]
[341618198,1731040259899,-500.0,0.00027945,2]
[341618199,1731040259910,-500.0,0.00027945,2]
[341618200,1731040259919,-500.0,0.00027945,2]
[341618201,1731040259928,-500.0,0.00027945,2]
[341618202,1731040259938,-512.3138198,0.00027945,2]
[341618203,1731040259947,-276.80940774,0.00027945,2]
[341618204,1731040259956,-500.0,0.00027945,2]
[341618205,1731040259966,-500.0,0.00027945,2]
[341618206,1731040259975,-500.0,0.00027945,2]
[341618207,1731040259986,-500.0,0.00027945,2]
[341618208,1731040259996,-521.32,0.00027945,2]
[341618209,1731040260005,-500.9,0.00027945,2]
[341618210,1731040260015,-500.0,0.00027945,2]
[341618211,1731040260024,-500.0,0.00027945,2]
[341618212,1731040260032,-500.0,0.00027945,2]
[341618213,1731040260042,-500.0,0.00027945,2]
[341618214,1731040260051,-500.0,0.00027945,2]
[341618215,1731040260060,-500.0,0.00027945,2]
[341618216,1731040260069,-572.17,0.00027945,2]
[341618217,1731040260078,-1048.96,0.00027945,2]
[341618218,1731040260087,-500.0,0.00027945,2]
[341618219,1731040260097,-500.0,0.00027945,2]
[341618220,1731040260106,-500.0,0.00027945,2]
[341618221,1731040260115,-500.0,0.00027945,2]
[341618222,1731040260124,-500.0,0.00027945,2]
[341618223,1731040260133,-300.0,0.00027945,2]
[341618224,1731040260142,-589.42,0.00027945,2]
[341618225,1731040260151,-500.0,0.00027945,2]
[341618226,1731040260160,-394.24206462,0.00027945,2]
[341618227,1731040260170,-505.34,0.00027945,2]
[341618228,1731040260179,-500.0,0.00027945,2]
[341618229,1731040260188,-500.0,0.00027945,2]
[341618230,1731040260198,-500.0,0.00027945,2]
[341618231,1731040260207,-500.0,0.00027945,2]
[341618232,1731040260217,-500.0,0.00027945,2]
[341618233,1731040260227,-935.36,0.00027945,2]
[341618234,1731040260237,-500.0,0.00027945,2]
[341618235,1731040260247,-500.0,0.00027945,2]
[341618236,1731040260256,-309.29704077,0.00027945,2]
[341618237,1731040260264,-500.0,0.00027945,2]
[341618238,1731040260273,-500.0,0.00027945,2]
[341618239,1731040260283,-500.0,0.00027945,2]
[341618240,1731040260293,-500.0,0.00027945,2]
[341618241,1731040260304,-500.0,0.00027945,2]
[341618242,1731040260315,-511.4,0.00027945,2]
[341618243,1731040260324,-500.0,0.00027945,2]
[341618244,1731040260333,-500.0,0.00027945,2]
[341618245,1731040260440,-500.0,0.00027945,2]
[341618246,1731040260450,-704.44,0.00027945,2]
[341618247,1731040260459,-500.0,0.00027945,2]
[341618248,1731040260468,-500.0,0.00027945,2]
[341618249,1731040260477,-500.0,0.00027945,2]
[341618250,1731040260486,-608.19,0.00027945,2]
[341618251,1731040260495,-500.0,0.00027945,2]
[341618252,1731040260504,-500.0,0.00027945,2]
[341618253,1731040260513,-500.0,0.00027945,2]
[341618254,1731040260522,-500.0,0.00027945,2]
[341618255,1731040260531,-500.0,0.00027945,2]
[341618256,1731040260540,-1147.53,0.00027945,2]
[341618257,1731040260550,-500.0,0.00027945,2]
[341618258,1731040260559,-500.0,0.00027945,2]
[341618259,1731040260568,-500.0,0.00027945,2]
[341618260,1731040260577,-500.0,0.00027945,2]
[341618261,1731040260586,-682.63,0.00027945,2]
[341618262,1731040260595,-641.89,0.00027945,2]
[341618263,1731040260605,-500.0,0.00027945,2]
[341618264,1731040260614,-500.0,0.00027945,2]
[341618265,1731040260623,-500.0,0.00027945,2]
[341618266,1731040260631,-3024.65,0.00027945,2]
[341618267,1731040260640,-500.0,0.00027945,2]
[341618268,1731040260650,-500.0,0.00027945,2]
[341618269,1731040260658,-500.0,0.00027945,2]
[341618270,1731040260667,-500.0,0.00027945,2]
[341618271,1731040260676,-500.0,0.00027945,2]
[341618272,1731040260685,-500.0,0.00027945,2]
[341618273,1731040260694,-500.0,0.00027945,2]
[341618274,1731040260703,-975.41,0.00027945,2]
[341618275,1731040260712,-825.09,0.00027945,2]
[341618276,1731040260721,-500.0,0.00027945,2]
[341618277,1731040260731,-545.41,0.00027945,2]
[341618278,1731040260740,-500.0,0.00027945,2]
[341618279,1731040260749,-500.0,0.00027945,2]
[341618280,1731040260758,-500.0,0.00027945,2]
[341618281,1731040260767,-500.0,0.00027945,2]
[341618282,1731040260776,-500.0,0.00027945,2]
[341618283,1731040260786,-500.0,0.00027945,2]
[341618284,1731040260795,-500.0,0.00027945,2]
[341618285,1731040260804,-500.0,0.00027945,2]
[341618286,1731040260813,-515.2,0.00027945,2]
[341618287,1731040260822,-537.7913723,0.00027945,2]
[341618288,1731040260832,-500.0,0.00027945,2]
[341618289,1731040260843,-500.0,0.00027945,2]
[341618290,1731040260853,-500.0,0.00027945,2]
[341618291,1731040260862,-782.22,0.00027945,2]
[341618292,1731040260871,-631.69,0.00027945,2]
[341618293,1731040260881,-151.0,0.00027945,7]
[341618294,1731040260890,-500.0,0.00027945,2]
[341618295,1731040260900,-500.0,0.00027945,2]
[341618296,1731040260909,-500.0,0.00027945,2]
[341618297,1731040260920,-536.54,0.00027945,2]
[341618298,1731040260930,-500.0,0.00027945,2]
[341618299,1731040260939,-500.0,0.00027945,2]
[341618300,1731040260948,-226.81,0.00027945,2]
[341618301,1731040260957,-500.0,0.00027945,2]
[341618302,1731040260966,-500.0,0.00027945,2]
[341618303,1731040260975,-500.0,0.00027945,2]
[341618304,1731040260984,-1081.84,0.00027945,2]
[341618305,1731040260993,-500.0,0.00027945,2]
[341618306,1731040261002,-500.0,0.00027945,2]
[341618307,1731040261011,-612.97,0.00027945,2]
[341618308,1731040261021,-500.0,0.00027945,2]
[341618309,1731040261030,-500.0,0.00027945,2]
[341618310,1731040261039,-500.0,0.00027945,2]
[341618311,1731040261049,-743.84,0.00027945,2]
[341618312,1731040261058,-500.0,0.00027945,2]
[341618313,1731040261067,-500.0,0.00027945,2]
[341618314,1731040261077,-500.0,0.00027945,2]
[341618315,1731040261087,-500.0,0.00027945,2]
[341618316,1731040261098,-632.41,0.00027945,2]
[341618317,1731040261107,-506.67,0.00027945,2]
[341618318,1731040261116,-500.0,0.00027945,2]
[341618319,1731040261125,-791.27,0.00027945,2]
[341618320,1731040261134,-500.0,0.00027945,2]
[341618321,1731040261143,-500.0,0.00027945,2]
[341618322,1731040261152,-500.0,0.00027945,2]
[341618323,1731040261161,-547.6,0.00027945,2]
[341618324,1731040261170,-524.82,0.00027945,2]
[341618325,1731040261179,-500.0,0.00027945,2]
[341618326,1731040261188,-500.0,0.00027945,2]
[341618327,1731040261198,-500.0,0.00027945,2]
[341618328,1731040261207,-500.0,0.00027945,2]
[341618329,1731040261216,-500.0,0.00027945,2]
[341618330,1731040261226,-467.86735145,0.00027945,2]
[341618331,1731040261235,-500.0,0.00027945,2]
[341618332,1731040261244,-500.0,0.00027945,2]
[341618333,1731040261254,-500.0,0.00027945,2]
[341618334,1731040261263,-500.0,0.00027945,2]
[341618335,1731040261272,-539.95,0.00027945,2]
[341618336,1731040261281,-500.0,0.00027945,2]
[341618337,1731040261290,-500.0,0.00027945,2]
[341618338,1731040261299,-519.22,0.00027945,2]
[341618339,1731040261308,-500.0,0.00027945,2]
[341618340,1731040261318,-500.0,0.00027945,2]
[341618341,1731040261327,-531.61,0.00027945,2]
[341618342,1731040261336,-500.0,0.00027945,2]
[341618343,1731040261345,-500.0,0.00027945,2]
[341618344,1731040261356,-500.0,0.00027945,2]
[341618345,1731040261365,-637.29,0.00027945,2]
[341618346,1731040261374,-500.0,0.00027945,2]
[341618347,1731040261383,-500.0,0.00027945,2]
[341618348,1731040261392,-500.0,0.00027945,2]
[341618349,1731040261401,-500.0,0.00027945,2]
[341618350,1731040261410,-500.0,0.00027945,2]
[341618351,1731040261420,-559.39,0.00027945,2]
[341618352,1731040261429,-500.0,0.00027945,2]
[341618353,1731040261438,-969.47,0.00027945,2]
[341618354,1731040261446,-230.86406777,0.00027945,2]
[341618355,1731040261455,-500.0,0.00027945,2]
[341618356,1731040261464,-667.09,0.00027945,2]
[341618357,1731040261473,-500.0,0.00027945,2]
[341618358,1731040261482,-500.0,0.00027945,2]
[341618359,1731040261491,-616.18,0.00027945,2]
[341618360,1731040261500,-603.13,0.00027945,2]
[341618361,1731040261509,-500.0,0.00027945,2]
[341618362,1731040261518,-533.0,0.00027945,2]
[341618363,1731040261527,-500.0,0.00027945,2]
[341618364,1731040261536,-500.0,0.00027945,2]
[341618365,1731040261546,-500.0,0.00027945,2]
[341618366,1731040261555,-517.27,0.00027945,2]
[341618367,1731040261564,-500.0,0.00027945,2]
[341618368,1731040261573,-500.0,0.00027945,2]
[341618369,1731040261582,-535.79,0.00027945,2]
[341618370,1731040261591,-500.0,0.00027945,2]
[341618371,1731040261606,-839.34,0.00027945,2]
[341618372,1731040261615,-500.0,0.00027945,2]
[341618373,1731040261624,-500.0,0.00027945,2]
[341618374,1731040261634,-500.0,0.00027945,2]
[341618375,1731040261643,-804.58,0.00027945,2]
[341618376,1731040261653,-500.0,0.00027945,2]
[341618377,1731040261662,-174.63899968,0.00027945,2]
[341618378,1731040261671,-500.0,0.00027945,2]
[341618379,1731040261680,-500.0,0.00027945,2]
[341618380,1731040261689,-500.0,0.00027945,2]
[341618381,1731040261698,-500.0,0.00027945,2]
[341618382,1731040261707,-500.0,0.00027945,2]
[341618383,1731040261717,-556.75,0.00027945,2]
[341618384,1731040261728,-500.0,0.00027945,2]
[341618385,1731040261738,-617.61,0.00027945,2]
[341618386,1731040261747,-500.0,0.00027945,2]
[341618387,1731040261756,-742.87,0.00027945,2]
[341618388,1731040261767,-1011.35,0.00027945,2]
[341618389,1731040261776,-311.87236138,0.00027945,2]
[341618390,1731040261785,-665.71,0.00027945,2]
[341618391,1731040261794,-500.0,0.00027945,2]
[341618392,1731040261803,-510.79,0.00027945,2]
[341618393,1731040261812,-523.54,0.00027945,2]
[341618394,1731040261821,-500.0,0.00027945,2]
[341618395,1731040261832,-822.96,0.00027945,2]
[341618396,1731040261844,-500.0,0.00027945,2]
[341618397,1731040261856,-1318.45,0.00027945,2]
[341618398,1731040261866,-11445.03,0.00027945,2]
[341618399,1731040261875,-500.0,0.00027945,2]
[341618400,1731040261884,-500.0,0.00027945,2]
[341618401,1731040261893,-1290.82,0.00027945,2]
[341618402,1731040261902,-500.0,0.00027945,2]
[341618403,1731040261912,-500.0,0.00027945,2]
[341618404,1731040261921,-565.91,0.00027945,2]
[341618405,1731040261930,-500.0,0.00027945,2]
[341618406,1731040261939,-568.67,0.00027945,2]
[341618407,1731040261949,-908.43,0.00027945,2]
[341618408,1731040261958,-500.0,0.00027945,2]
[341618409,1731040261967,-500.0,0.00027945,2]
[341618410,1731040261976,-679.63,0.00027945,2]
[341618411,1731040261984,-500.0,0.00027945,2]
[341618412,1731040261994,-500.0,0.00027945,2]
[341618413,1731040262003,-500.0,0.00027945,2]
[341618414,1731040262012,-500.0,0.00027945,2]
[341618415,1731040262022,-947.81,0.00027945,2]
[341618416,1731040262031,-1004.97,0.00027945,2]
[341618417,1731040262127,-500.0,0.00027945,2]
[341618418,1731040262144,-1946.14,0.00027945,2]
[341618419,1731040262153,-1000.77,0.00027945,2]
[341618420,1731040262163,-1541.48,0.00027945,2]
[341618421,1731040262171,-625.93,0.00027945,2]
[341618422,1731040262180,-500.0,0.00027945,2]
[341618423,1731040262189,-1865.63,0.00027945,2]
[341618424,1731040262199,-500.0,0.00027945,2]
[341618425,1731040262207,-500.0,0.00027945,2]
[341618426,1731040262216,-500.0,0.00027945,2]
[341618427,1731040262225,-878.91,0.00027945,2]
[341618428,1731040262234,-1284.98,0.00027945,2]
[341618429,1731040262243,-500.0,0.00027945,2]
[341618430,1731040262252,-1707.34,0.00027945,2]
[341618431,1731040262261,-500.0,0.00027945,2]
[341618432,1731040262270,-500.0,0.00027945,2]
[341618433,1731040262279,-4089.6,0.00027945,2]
[341618434,1731040262287,-777.1,0.00027945,2]
[341618435,1731040262297,-500.0,0.00027945,2]
[341618436,1731040262308,-500.0,0.00027945,2]
[341618437,1731040262317,-180.18204853,0.00027945,2]
[341618438,1731040262326,-572.44,0.00027945,2]
[341618439,1731040262334,-540.0,0.00027945,2]
[341618440,1731040262343,-500.0,0.00027945,2]
[341618441,1731040262354,-860.3,0.00027945,2]
[341618442,1731040262363,-500.0,0.00027945,2]
[341618443,1731040262373,-309.1292983,0.00027945,2]
[341618444,1731040262382,-1216.65,0.00027945,2]
[341618445,1731040262391,-500.0,0.00027945,2]
[341618446,1731040262399,-718.99,0.00027945,2]
[341618447,1731040262409,-1260.73,0.00027945,2]
[341618448,1731040262419,-510.54,0.00027945,2]
[341618449,1731040262428,-500.0,0.00027945,2]
[341618450,1731040262437,-2704.99,0.00027945,2]
[341618451,1731040262446,-500.0,0.00027945,2]
[341618452,1731040262455,-500.0,0.00027945,2]
[341618453,1731040262464,-2331.48,0.00027945,2]
[341618454,1731040262473,-500.0,0.00027945,2]
[341618455,1731040262482,-1563.47,0.00027945,2]
[341618456,1731040262491,-333.79485549,0.00027945,2]
[341618457,1731040262500,-614.09,0.00027945,2]
[341618458,1731040262509,-1346.4,0.00027945,2]
[341618459,1731040262518,-500.0,0.00027945,2]
[341618460,1731040262527,-891.99,0.00027945,2]
[341618461,1731040262536,-631.18,0.00027945,2]
[341618462,1731040262545,-749.48,0.00027945,2]
[341618463,1731040262554,-500.0,0.00027945,2]
[341618464,1731040262563,-500.0,0.00027945,2]
[341618465,1731040262571,-500.0,0.00027945,2]
[341618466,1731040262580,-615.68,0.00027945,2]
[341618467,1731040262589,-500.0,0.00027945,2]
[341618468,1731040262598,-500.0,0.00027945,2]
[341618469,1731040262607,-500.0,0.00027945,2]
[341618470,1731040262617,-1000.0,0.00027945,2]
[341618471,1731040262626,-500.0,0.00027945,2]
[341618472,1731040262634,-500.0,0.00027945,2]
[341618473,1731040262643,-664.49,0.00027945,2]
[341618474,1731040262652,-938.36,0.00027945,2]
[341618475,1731040262661,-691.27,0.00027945,2]
[341618476,1731040262670,-1808.93,0.00027945,2]
[341618477,1731040262679,-500.0,0.00027945,2]
[341618478,1731040262688,-500.0,0.00027945,2]
[341618479,1731040262697,-500.0,0.00027945,2]
[341618480,1731040262706,-500.0,0.00027945,2]
[341618481,1731040262716,-1366.11,0.00027945,2]
[341618482,1731040262726,-567.59,0.00027945,2]
[341618483,1731040262735,-500.0,0.00027945,2]
[341618484,1731040262743,-603.44,0.00027945,2]
[341618485,1731040262752,-2158.79,0.00027945,2]
[341618486,1731040262761,-635.95,0.00027945,2]
[341618487,1731040262770,-500.0,0.00027945,2]
[341618488,1731040262779,-500.0,0.00027945,2]
[341618489,1731040262788,-620.25,0.00027945,2]
[341618490,1731040262797,-1709.09,0.00027945,2]
[341618491,1731040262806,-825.98,0.00027945,2]
[341618492,1731040262815,-5320.28,0.00027945,2]
[341618493,1731040262824,-500.0,0.00027945,2]
[341618494,1731040262836,-539.38,0.00027945,2]
[341618495,1731040262845,-587.5,0.00027945,2]
[341618496,1731040262855,-699.0,0.00027945,2]
[341618497,1731040262864,-658.39,0.00027945,2]
[341618498,1731040262873,-500.0,0.00027945,2]
[341618499,1731040262882,-610.15,0.00027945,2]
[341618500,1731040262891,-500.0,0.00027945,2]
[341618501,1731040262900,-500.0,0.00027945,2]
[341618502,1731040262910,-500.0,0.00027945,2]
[341618503,1731040262919,-500.0,0.00027945,2]
[341618504,1731040262928,-500.0,0.00027945,2]
[341618505,1731040262937,-500.0,0.00027945,2]
[341618506,1731040262946,-500.0,0.00027945,2]
[341618507,1731040262954,-816.52,0.00027945,2]
[341618508,1731040262963,-500.0,0.00027945,2]
[341618509,1731040262972,-585.69,0.00027945,2]
[341618510,1731040262981,-1241.53,0.00027945,2]
[341618511,1731040262990,-514.54,0.00027945,2]
[341618512,1731040262999,-748.63,0.00027945,2]
[341618513,1731040263009,-539.17,0.00027945,2]
[341618514,1731040263017,-847.32,0.00027945,2]
[341618515,1731040263026,-500.0,0.00027945,2]
[341618516,1731040263036,-601.57,0.00027945,2]
[341618517,1731040263045,-500.0,0.00027945,2]
[341618518,1731040263054,-606.64,0.00027945,2]
[341618519,1731040263063,-1322.92,0.00027945,2]
[341618520,1731040263072,-500.0,0.00027945,2]
[341618521,1731040263082,-1041.6,0.00027945,2]
[341618522,1731040263091,-885.51,0.00027945,2]
[341618523,1731040263102,-676.2,0.00027945,2]
[341618524,1731040263111,-3765.67,0.00027945,2]
[341618525,1731040263121,-1038.93,0.00027945,2]
[341618526,1731040263130,-1141.8,0.00027945,2]
[341618527,1731040263139,-1009.43,0.00027945,2]
[341618528,1731040263148,-500.0,0.00027945,2]
[341618529,1731040263157,-550.99,0.00027945,2]
[341618530,1731040263167,-1363.45,0.00027945,2]
[341618531,1731040263176,-500.0,0.00027945,2]
[341618532,1731040263186,-1604.37,0.00027945,2]
[341618533,1731040263195,-1269.12,0.00027945,2]
[341618534,1731040263204,-1577.45,0.00027945,2]
[341618535,1731040263213,-500.0,0.00027945,2]
[341618536,1731040263223,-500.0,0.00027945,2]
[341618537,1731040263232,-2314.52,0.00027945,2]
[341618538,1731040263242,-500.0,0.00027945,7]
[341618539,1731040263251,-1843.27,0.00027945,2]
[341618540,1731040263260,-500.0,0.00027945,2]
[341618541,1731040263270,-981.73,0.00027945,2]
[341618542,1731040263279,-3324.52,0.00027945,2]
[341618543,1731040263288,-500.0,0.00027945,2]
[341618544,1731040263297,-614.85,0.00027945,2]
[341618545,1731040263306,-500.0,0.00027945,2]
[341618546,1731040263315,-844.68,0.00027945,2]
[341618547,1731040263323,-500.0,0.00027945,2]
[341618548,1731040263332,-502.64,0.00027945,2]
[341618549,1731040263341,-500.0,0.00027945,2]
[341618550,1731040263351,-1254.8,0.00027945,2]
[341618551,1731040263359,-906.84,0.00027945,2]
[341618552,1731040263368,-500.0,0.00027945,2]
[341618553,1731040263376,-500.0,0.00027945,2]